[Event "Early-Titled-Tuesday-Blitz-February-27-2024"]
[Site "Chess.com"]
[Date "2024.02.27"]
[Round "5"]
[White "Akewjon"]
[Black "Boundless_Strike"]
[Result "1/2-1/2"]
[WhiteElo "2809"]
[BlackElo "2616"]
[TimeControl "180+1"]
[EndTime "8:56:28 PST"]
[Termination "Game drawn by repetition"]

1. d4 {[%clk 0:03:00.9]} 1... e5 {[%clk 0:02:54.2]} 2. dxe5 {[%clk 0:02:58.6]}
2... d6 {[%clk 0:02:53.9]} 3. exd6 {[%clk 0:02:57.3]} 3... Bxd6 {[%clk 0:02:54]}
4. Nf3 {[%clk 0:02:55]} 4... Nc6 {[%clk 0:02:53.9]} 5. e3 {[%clk 0:02:40.6]}
5... Bg4 {[%clk 0:02:53.2]} 6. h3 {[%clk 0:02:37.7]} 6... Bh5 {[%clk 0:02:53.1]}
7. Nbd2 {[%clk 0:02:36.9]} 7... Qe7 {[%clk 0:02:52.1]} 8. Be2 {[%clk 0:02:36.7]}
8... O-O-O {[%clk 0:02:51.7]} 9. O-O {[%clk 0:02:28.2]} 9... Nf6 {[%clk
0:02:47.2]} 10. b3 {[%clk 0:02:20]} 10... Bxf3 {[%clk 0:02:40.3]} 11. Nxf3
{[%clk 0:02:14.8]} 11... Bh2+ {[%clk 0:02:37.5]} 12. Kxh2 {[%clk 0:02:15.5]}
12... Rxd1 {[%clk 0:02:37]} 13. Rxd1 {[%clk 0:02:16.4]} 13... Ne4 {[%clk
0:02:23.1]} 14. Rf1 {[%clk 0:02:14.3]} 14... Qf6 {[%clk 0:02:08.4]} 15. Rb1
{[%clk 0:02:14.2]} 15... Nc3 {[%clk 0:02:07.9]} 16. Bb2 {[%clk 0:02:14.7]} 16...
Qd6+ {[%clk 0:02:07.8]} 17. Kh1 {[%clk 0:02:11.6]} 17... Nxe2 {[%clk 0:02:07.4]}
18. Rbe1 {[%clk 0:02:09.6]} 18... Ng3+ {[%clk 0:01:47.4]} 19. fxg3 {[%clk
0:02:09.8]} 19... Qxg3 {[%clk 0:01:48.1]} 20. e4 {[%clk 0:02:07.2]} 20... Re8
{[%clk 0:01:39]} 21. e5 {[%clk 0:02:06.5]} 21... g5 {[%clk 0:01:36]} 22. Re4
{[%clk 0:02:05.7]} 22... f5 {[%clk 0:01:16.9]} 23. Rc4 {[%clk 0:02:01.2]} 23...
g4 {[%clk 0:01:07.7]} 24. hxg4 {[%clk 0:01:42.3]} 24... fxg4 {[%clk 0:01:07.4]}
25. Nh2 {[%clk 0:01:43.2]} 25... h5 {[%clk 0:00:56.6]} 26. Re4 {[%clk
0:01:42.5]} 26... Nd8 {[%clk 0:00:32.3]} 27. Ref4 {[%clk 0:00:44.8]} 27... Ne6
{[%clk 0:00:29.1]} 28. Rf6 {[%clk 0:00:45.5]} 28... h4 {[%clk 0:00:19.6]} 29.
Rg6 {[%clk 0:00:45.5]} 29... h3 {[%clk 0:00:20.1]} 30. gxh3 {[%clk 0:00:45.6]}
30... Qxh3 {[%clk 0:00:19.1]} 31. Rxg4 {[%clk 0:00:35.2]} 31... Rh8 {[%clk
0:00:18.8]} 32. Rg2 {[%clk 0:00:35.7]} 32... Ng5 {[%clk 0:00:11]} 33. e6 {[%clk
0:00:33.7]} 33... Nxe6 {[%clk 0:00:04.6]} 34. Bxh8 {[%clk 0:00:33.5]} 34... Qxh8
{[%clk 0:00:05.5]} 35. Re2 {[%clk 0:00:29.1]} 35... Nd4 {[%clk 0:00:05.6]} 36.
Ref2 {[%clk 0:00:29.5]} 36... Qe5 {[%clk 0:00:03.8]} 37. c3 {[%clk 0:00:27.1]}
37... Ne6 {[%clk 0:00:03.6]} 38. c4 {[%clk 0:00:25.5]} 38... Qe4+ {[%clk
0:00:03.7]} 39. Nf3 {[%clk 0:00:22.3]} 39... b6 {[%clk 0:00:04.4]} 40. Re1
{[%clk 0:00:20.9]} 40... Qf5 {[%clk 0:00:04.7]} 41. Kg1 {[%clk 0:00:19.5]} 41...
Nf4 {[%clk 0:00:04.8]} 42. Rff1 {[%clk 0:00:16.3]} 42... Qg4+ {[%clk 0:00:04.7]}
43. Kf2 {[%clk 0:00:17]} 43... Qg2+ {[%clk 0:00:04.8]} 44. Ke3 {[%clk
0:00:17.4]} 44... Ne6 {[%clk 0:00:05.4]} 45. Rf2 {[%clk 0:00:16.5]} 45... Qg7
{[%clk 0:00:04.8]} 46. Nd2 {[%clk 0:00:13.9]} 46... Qc3+ {[%clk 0:00:04.2]} 47.
Ke2 {[%clk 0:00:14.2]} 47... Nd4+ {[%clk 0:00:04.3]} 48. Kf1 {[%clk 0:00:14.9]}
48... Qd3+ {[%clk 0:00:04.8]} 49. Kg1 {[%clk 0:00:15.6]} 49... Nc2 {[%clk
0:00:04.5]} 50. Re4 {[%clk 0:00:13.5]} 50... a5 {[%clk 0:00:04.2]} 51. c5 {[%clk
0:00:12.5]} 51... bxc5 {[%clk 0:00:03.6]} 52. Rc4 {[%clk 0:00:12.8]} 52... Nd4
{[%clk 0:00:03.2]} 53. Rxc5 {[%clk 0:00:12.7]} 53... Ne2+ {[%clk 0:00:03.8]} 54.
Kg2 {[%clk 0:00:08.5]} 54... Qxd2 {[%clk 0:00:03.8]} 55. Re5 {[%clk 0:00:09]}
55... Qd4 {[%clk 0:00:02.1]} 56. Rexe2 {[%clk 0:00:09]} 56... Qg4+ {[%clk
0:00:02.5]} 57. Kf1 {[%clk 0:00:09.3]} 57... Qh3+ {[%clk 0:00:02.9]} 58. Ke1
{[%clk 0:00:09.9]} 58... Qc3+ {[%clk 0:00:03.6]} 59. Kd1 {[%clk 0:00:10.2]}
59... Qa1+ {[%clk 0:00:04]} 60. Kc2 {[%clk 0:00:10.5]} 60... Qxa2+ {[%clk
0:00:04.4]} 61. Kc3 {[%clk 0:00:11.2]} 61... Qa3 {[%clk 0:00:05.2]} 62. Ra2
{[%clk 0:00:09.8]} 62... Qb4+ {[%clk 0:00:05.3]} 63. Kc2 {[%clk 0:00:09.9]}
63... Qc5+ {[%clk 0:00:05.2]} 64. Kb1 {[%clk 0:00:10.7]} 64... Qb4 {[%clk
0:00:05.3]} 65. Rfc2 {[%clk 0:00:11.2]} 65... Kb7 {[%clk 0:00:05.4]} 66. Kc1
{[%clk 0:00:10.6]} 66... Qe1+ {[%clk 0:00:05.5]} 67. Kb2 {[%clk 0:00:11]} 67...
Qe5+ {[%clk 0:00:06.2]} 68. Kb1 {[%clk 0:00:10.4]} 68... Qb5 {[%clk 0:00:06.9]}
69. Rab2 {[%clk 0:00:09.5]} 69... c6 {[%clk 0:00:06.7]} 70. Rc4 {[%clk
0:00:09.6]} 70... Kb6 {[%clk 0:00:06.8]} 71. Ka2 {[%clk 0:00:10.1]} 71... Qd5
{[%clk 0:00:05.9]} 72. Rbc2 {[%clk 0:00:10.8]} 72... Qb5 {[%clk 0:00:06.3]} 73.
Ka3 {[%clk 0:00:11.2]} 73... Qd5 {[%clk 0:00:06.5]} 74. Ka4 {[%clk 0:00:10.6]}
74... Qb5+ {[%clk 0:00:06.9]} 75. Ka3 {[%clk 0:00:11.1]} 75... Kb7 {[%clk
0:00:07.4]} 76. Rc5 {[%clk 0:00:11.1]} 76... Qb4+ {[%clk 0:00:06.9]} 77. Ka2
{[%clk 0:00:11.8]} 77... Qb6 {[%clk 0:00:05]} 78. R2c4 {[%clk 0:00:11]} 78...
Kc7 {[%clk 0:00:04.7]} 79. Ka3 {[%clk 0:00:11.4]} 79... Kd6 {[%clk 0:00:05]} 80.
Rh5 {[%clk 0:00:09]} 80... Qg1 {[%clk 0:00:04.6]} 81. Rh6+ {[%clk 0:00:09.5]}
81... Kd5 {[%clk 0:00:05.1]} 82. Rh5+ {[%clk 0:00:07.8]} 82... Kd6 {[%clk
0:00:05.5]} 83. Rh6+ {[%clk 0:00:06.7]} 83... Kd5 {[%clk 0:00:06]} 84. Rh5+
{[%clk 0:00:03.9]} 84... Kd6 {[%clk 0:00:06.5]} 1/2-1/2

[Event "Early-Titled-Tuesday-Blitz-February-27-2024"]
[Site "Chess.com"]
[Date "2024.02.27"]
[Round "5"]
[White "wild3000"]
[Black "1mbl4"]
[Result "0-1"]
[WhiteElo "2444"]
[BlackElo "2605"]
[TimeControl "180+1"]
[EndTime "8:56:40 PST"]
[Termination "1mbl4 won by checkmate"]

1. d4 {[%clk 0:02:20.4]} 1... g6 {[%clk 0:02:58.5]} 2. Nf3 {[%clk 0:02:20.4]}
2... Bg7 {[%clk 0:02:58.8]} 3. g3 {[%clk 0:02:20.7]} 3... d6 {[%clk 0:02:58.4]}
4. Bg2 {[%clk 0:02:21.1]} 4... Nc6 {[%clk 0:02:57.4]} 5. O-O {[%clk 0:02:20.8]}
5... Bd7 {[%clk 0:02:57.6]} 6. c4 {[%clk 0:02:19.4]} 6... Qc8 {[%clk 0:02:55.8]}
7. d5 {[%clk 0:02:15.2]} 7... Nb4 {[%clk 0:02:53.7]} 8. Qb3 {[%clk 0:02:09.2]}
8... Na6 {[%clk 0:02:53]} 9. Be3 {[%clk 0:02:08.1]} 9... b6 {[%clk 0:02:43.7]}
10. Nc3 {[%clk 0:02:06.4]} 10... Nc5 {[%clk 0:02:43.4]} 11. Qd1 {[%clk
0:01:50.1]} 11... Bh3 {[%clk 0:02:38.9]} 12. Bd4 {[%clk 0:01:45]} 12... Nf6
{[%clk 0:02:37.8]} 13. b4 {[%clk 0:01:41.1]} 13... Nb7 {[%clk 0:02:24.5]} 14. e4
{[%clk 0:01:34.9]} 14... Bxg2 {[%clk 0:02:16.8]} 15. Kxg2 {[%clk 0:01:34.9]}
15... c5 {[%clk 0:02:17.2]} 16. bxc5 {[%clk 0:01:14.4]} 16... Nxc5 {[%clk
0:02:16.4]} 17. e5 {[%clk 0:01:06.1]} 17... dxe5 {[%clk 0:02:17.3]} 18. Nxe5
{[%clk 0:01:06.2]} 18... O-O {[%clk 0:02:15.8]} 19. Nc6 {[%clk 0:01:04.2]} 19...
Re8 {[%clk 0:02:11.6]} 20. Re1 {[%clk 0:01:03.7]} 20... Qb7 {[%clk 0:02:02.4]}
21. Rb1 {[%clk 0:01:01.2]} 21... Qd7 {[%clk 0:01:52.6]} 22. Bxc5 {[%clk
0:00:42.3]} 22... bxc5 {[%clk 0:01:53.5]} 23. Na4 {[%clk 0:00:42.9]} 23... Qd6
{[%clk 0:01:37.9]} 24. Rb7 {[%clk 0:00:41.9]} 24... e5 {[%clk 0:01:34.6]} 25.
Qd3 {[%clk 0:00:29.7]} 25... e4 {[%clk 0:01:29.1]} 26. Qe3 {[%clk 0:00:26.2]}
26... Nd7 {[%clk 0:01:28.8]} 27. Qf4 {[%clk 0:00:21.4]} 27... Be5 {[%clk
0:01:12.1]} 28. Nxe5 {[%clk 0:00:20]} 28... Nxe5 {[%clk 0:01:13]} 29. Rxe4
{[%clk 0:00:18.8]} 29... f5 {[%clk 0:01:06.7]} 30. Re3 {[%clk 0:00:14.5]} 30...
Nf7 {[%clk 0:00:54.4]} 31. Rxe8+ {[%clk 0:00:10.3]} 31... Rxe8 {[%clk
0:00:54.7]} 32. Qxd6 {[%clk 0:00:10]} 32... Nxd6 {[%clk 0:00:55.6]} 33. Rxa7
{[%clk 0:00:09.9]} 33... Nxc4 {[%clk 0:00:54]} 34. Nxc5 {[%clk 0:00:10.1]} 34...
Rd8 {[%clk 0:00:52.7]} 35. Rd7 {[%clk 0:00:09.4]} 35... Rc8 {[%clk 0:00:50.6]}
36. Ne6 {[%clk 0:00:09.3]} 36... Ne5 {[%clk 0:00:50.6]} 37. Rg7+ {[%clk
0:00:08.9]} 37... Kh8 {[%clk 0:00:51.3]} 38. Rc7 {[%clk 0:00:08.8]} 38... Re8
{[%clk 0:00:50.1]} 39. a4 {[%clk 0:00:08.3]} 39... Ng4 {[%clk 0:00:46.7]} 40. h3
{[%clk 0:00:07.8]} 40... Nf6 {[%clk 0:00:47.1]} 41. Nf4 {[%clk 0:00:06]} 41...
g5 {[%clk 0:00:46.3]} 42. Rf7 {[%clk 0:00:06.1]} 42... Ne4 {[%clk 0:00:42.2]}
43. Ne6 {[%clk 0:00:04]} 43... Nd6 {[%clk 0:00:43]} 44. Rd7 {[%clk 0:00:03.7]}
44... Nc8 {[%clk 0:00:43.3]} 45. a5 {[%clk 0:00:03.5]} 45... Ne7 {[%clk
0:00:43.7]} 46. d6 {[%clk 0:00:02.4]} 46... Nc6 {[%clk 0:00:43.8]} 47. Nc7
{[%clk 0:00:02.6]} 47... Rb8 {[%clk 0:00:44.2]} 48. a6 {[%clk 0:00:02.4]} 48...
f4 {[%clk 0:00:44.3]} 49. gxf4 {[%clk 0:00:02.4]} 49... gxf4 {[%clk 0:00:45.2]}
50. Kf3 {[%clk 0:00:03.3]} 50... Ne5+ {[%clk 0:00:44.4]} 51. Kxf4 {[%clk
0:00:03.7]} 51... Nxd7 {[%clk 0:00:45.3]} 52. Kf5 {[%clk 0:00:04.5]} 52... Nb6
{[%clk 0:00:44.1]} 53. Ke6 {[%clk 0:00:04.5]} 53... Kg7 {[%clk 0:00:43.5]} 54.
Ke7 {[%clk 0:00:04.6]} 54... Nc8+ {[%clk 0:00:42.4]} 55. Kd7 {[%clk 0:00:04.4]}
55... Na7 {[%clk 0:00:42.3]} 56. Ke7 {[%clk 0:00:04.2]} 56... Nc6+ {[%clk
0:00:39.4]} 57. Kd7 {[%clk 0:00:04.2]} 57... Rb6 {[%clk 0:00:38.5]} 58. a7
{[%clk 0:00:03.6]} 58... Nxa7 {[%clk 0:00:38.8]} 59. Ke7 {[%clk 0:00:02.2]}
59... Nc6+ {[%clk 0:00:38.2]} 60. Kd7 {[%clk 0:00:01.9]} 60... Kf7 {[%clk
0:00:35.9]} 61. f4 {[%clk 0:00:01.3]} 61... Nb8+ {[%clk 0:00:35.3]} 62. Kc8
{[%clk 0:00:01.5]} 62... Rxd6 {[%clk 0:00:28.3]} 63. f5 {[%clk 0:00:01.9]} 63...
Nc6 {[%clk 0:00:27.2]} 64. Kb7 {[%clk 0:00:01.7]} 64... Ne7 {[%clk 0:00:27.1]}
65. Ne6 {[%clk 0:00:01.6]} 65... Nxf5 {[%clk 0:00:24.9]} 66. Ng5+ {[%clk
0:00:01.8]} 66... Kg6 {[%clk 0:00:25.6]} 67. Ne4 {[%clk 0:00:01.8]} 67... Rd4
{[%clk 0:00:26.3]} 68. Nf2 {[%clk 0:00:01.6]} 68... h5 {[%clk 0:00:25.6]} 69.
Kc6 {[%clk 0:00:01.5]} 69... Rf4 {[%clk 0:00:25.4]} 70. Nd3 {[%clk 0:00:01.6]}
70... Rf1 {[%clk 0:00:25.8]} 71. Kd5 {[%clk 0:00:01.2]} 71... Kg5 {[%clk
0:00:26.3]} 72. Ke4 {[%clk 0:00:01.4]} 72... Nh4 {[%clk 0:00:26.5]} 73. Ne5
{[%clk 0:00:01.4]} 73... Rf4+ {[%clk 0:00:26.8]} 74. Ke3 {[%clk 0:00:01.5]}
74... Nf5+ {[%clk 0:00:26.8]} 75. Kd3 {[%clk 0:00:01.3]} 75... Rf1 {[%clk
0:00:25.8]} 76. Ke2 {[%clk 0:00:01.3]} 76... Ra1 {[%clk 0:00:26]} 77. Nf7+
{[%clk 0:00:01.6]} 77... Kf4 {[%clk 0:00:26]} 78. Nd8 {[%clk 0:00:01.4]} 78...
Ra2+ {[%clk 0:00:26.3]} 79. Kd3 {[%clk 0:00:01.6]} 79... Rh2 {[%clk 0:00:26.4]}
80. Ne6+ {[%clk 0:00:01.8]} 80... Kg3 {[%clk 0:00:24.6]} 81. Ng5 {[%clk
0:00:01.7]} 81... Nh4 {[%clk 0:00:23.8]} 82. Ne4+ {[%clk 0:00:01.3]} 82... Kxh3
{[%clk 0:00:23.9]} 83. Ke3 {[%clk 0:00:02.2]} 83... Kg4 {[%clk 0:00:22.6]} 84.
Nf6+ {[%clk 0:00:02.3]} 84... Kf5 {[%clk 0:00:22.4]} 85. Ne4 {[%clk 0:00:02.7]}
85... Rh3+ {[%clk 0:00:22.3]} 86. Kd4 {[%clk 0:00:02.2]} 86... Nf3+ {[%clk
0:00:22.6]} 87. Kd5 {[%clk 0:00:02]} 87... Ng5 {[%clk 0:00:22.1]} 88. Nf2 {[%clk
0:00:02.1]} 88... Rf3 {[%clk 0:00:21.8]} 89. Nh1 {[%clk 0:00:01.3]} 89... h4
{[%clk 0:00:22.4]} 90. Kd4 {[%clk 0:00:01.5]} 90... h3 {[%clk 0:00:23]} 91. Kc4
{[%clk 0:00:01.6]} 91... h2 {[%clk 0:00:23.4]} 92. Kd4 {[%clk 0:00:01.8]} 92...
Ne4 {[%clk 0:00:23.8]} 93. Kc4 {[%clk 0:00:01.5]} 93... Rf1 {[%clk 0:00:24.1]}
94. Kd3 {[%clk 0:00:01.4]} 94... Rxh1 {[%clk 0:00:24.1]} 95. Ke3 {[%clk
0:00:02.3]} 95... Rg1 {[%clk 0:00:24.4]} 96. Kf3 {[%clk 0:00:02.3]} 96... h1=Q+
{[%clk 0:00:24.4]} 97. Ke2 {[%clk 0:00:02]} 97... Re1+ {[%clk 0:00:24.3]} 98.
Kd3 {[%clk 0:00:01.9]} 98... Qf3+ {[%clk 0:00:24.2]} 99. Kc2 {[%clk 0:00:01.7]}
99... Qc3# {[%clk 0:00:23.9]} 0-1

[Event "Early-Titled-Tuesday-Blitz-February-27-2024"]
[Site "Chess.com"]
[Date "2024.02.27"]
[Round "5"]
[White "EsmeraldasAnderson03"]
[Black "AttackSparrow"]
[Result "0-1"]
[WhiteElo "2489"]
[BlackElo "2644"]
[TimeControl "180+1"]
[EndTime "8:56:43 PST"]
[Termination "AttackSparrow won by resignation"]

1. d4 {[%clk 0:03:00.9]} 1... d5 {[%clk 0:02:59.9]} 2. c4 {[%clk 0:03:01.3]}
2... e6 {[%clk 0:03:00.2]} 3. cxd5 {[%clk 0:03:01.6]} 3... exd5 {[%clk
0:03:01.1]} 4. Nc3 {[%clk 0:03:01.8]} 4... Nf6 {[%clk 0:03:01.3]} 5. Bg5 {[%clk
0:03:00.5]} 5... Bb4 {[%clk 0:03:01.7]} 6. e3 {[%clk 0:02:57]} 6... h6 {[%clk
0:03:01.8]} 7. Bxf6 {[%clk 0:02:55.3]} 7... Qxf6 {[%clk 0:03:02.7]} 8. Nf3
{[%clk 0:02:53.6]} 8... O-O {[%clk 0:02:59.8]} 9. Be2 {[%clk 0:02:52.1]} 9... c6
{[%clk 0:02:56.7]} 10. O-O {[%clk 0:02:52.3]} 10... Re8 {[%clk 0:02:57.3]} 11.
a3 {[%clk 0:02:52.3]} 11... Bf8 {[%clk 0:02:57.1]} 12. b4 {[%clk 0:02:52.3]}
12... Be6 {[%clk 0:02:35.1]} 13. b5 {[%clk 0:02:47.9]} 13... c5 {[%clk
0:02:31.8]} 14. Qd2 {[%clk 0:02:40.4]} 14... c4 {[%clk 0:02:15.7]} 15. Ne5
{[%clk 0:02:35.7]} 15... Qd8 {[%clk 0:02:11.2]} 16. e4 {[%clk 0:02:25.1]} 16...
dxe4 {[%clk 0:02:00.3]} 17. Nxe4 {[%clk 0:02:23.5]} 17... Bf5 {[%clk 0:01:50.4]}
18. Ng3 {[%clk 0:02:21.4]} 18... Rxe5 {[%clk 0:01:49.4]} 19. Qf4 {[%clk
0:02:15]} 19... Rxe2 {[%clk 0:01:46.6]} 20. Nxe2 {[%clk 0:02:13.3]} 20... Bd3
{[%clk 0:01:47.2]} 21. Rfe1 {[%clk 0:02:12]} 21... Nd7 {[%clk 0:01:43.3]} 22.
Ng3 {[%clk 0:02:10.4]} 22... Nf6 {[%clk 0:01:43.2]} 23. Nf5 {[%clk 0:01:59.9]}
23... Bxf5 {[%clk 0:01:39.5]} 24. Qxf5 {[%clk 0:02:00.8]} 24... Qxd4 {[%clk
0:01:40]} 25. Rad1 {[%clk 0:02:00.4]} 25... Qc5 {[%clk 0:01:39.9]} 26. Re5
{[%clk 0:01:59.5]} 26... Qxa3 {[%clk 0:01:37.7]} 27. g4 {[%clk 0:02:00.1]} 27...
Qh3 {[%clk 0:01:33.9]} 28. Rd4 {[%clk 0:01:56.5]} 28... Qc3 {[%clk 0:01:12.8]}
29. Qf4 {[%clk 0:01:48.2]} 29... Rc8 {[%clk 0:01:08.4]} 30. g5 {[%clk
0:01:46.3]} 30... hxg5 {[%clk 0:00:47.8]} 31. Rxg5 {[%clk 0:01:45.5]} 31... Nh7
{[%clk 0:00:33.1]} 32. Rf5 {[%clk 0:01:33.6]} 32... Qe1+ {[%clk 0:00:32.4]} 33.
Kg2 {[%clk 0:01:32.6]} 33... c3 {[%clk 0:00:33]} 34. Rxf7 {[%clk 0:01:12.6]}
34... c2 {[%clk 0:00:33.3]} 35. Rdd7 {[%clk 0:01:10.4]} 35... Qe6 {[%clk
0:00:25.5]} 36. Rc7 {[%clk 0:00:49.3]} 36... Qg6+ {[%clk 0:00:15.9]} 37. Kh1
{[%clk 0:00:46.3]} 37... Rxc7 {[%clk 0:00:11.7]} 38. Rxc7 {[%clk 0:00:45.9]}
38... Nf6 {[%clk 0:00:12.6]} 39. Qc4+ {[%clk 0:00:41.6]} 39... Kh7 {[%clk
0:00:11.3]} 40. Qxc2 {[%clk 0:00:42.2]} 40... Qxc2 {[%clk 0:00:11.8]} 41. Rxc2
{[%clk 0:00:42.6]} 41... b6 {[%clk 0:00:08.9]} 42. Rc7 {[%clk 0:00:41.8]} 42...
Bc5 {[%clk 0:00:09.5]} 43. Rxa7 {[%clk 0:00:42.1]} 43... Ne4 {[%clk 0:00:09.2]}
44. f4 {[%clk 0:00:40.2]} 44... Nd6 {[%clk 0:00:09.2]} 45. Kg2 {[%clk
0:00:38.4]} 45... Nxb5 {[%clk 0:00:09]} 46. Rb7 {[%clk 0:00:38.2]} 46... Nd6
{[%clk 0:00:09.2]} 47. Rb8 {[%clk 0:00:38]} 47... Kg6 {[%clk 0:00:09.6]} 48. Kf3
{[%clk 0:00:37.4]} 48... Kf6 {[%clk 0:00:10]} 49. Kg4 {[%clk 0:00:37.2]} 49...
Nf5 {[%clk 0:00:08.6]} 50. h4 {[%clk 0:00:35.6]} 50... Ne3+ {[%clk 0:00:07.7]}
51. Kf3 {[%clk 0:00:35.9]} 51... Nd5 {[%clk 0:00:07.3]} 52. Ke4 {[%clk
0:00:31.6]} 52... Ne7 {[%clk 0:00:06.9]} 53. h5 {[%clk 0:00:28.7]} 53... Nf5
{[%clk 0:00:06.5]} 54. Kf3 {[%clk 0:00:24.8]} 54... Nh6 {[%clk 0:00:07]} 55. Rb7
{[%clk 0:00:20.9]} 55... Nf7 {[%clk 0:00:07.3]} 56. Kg4 {[%clk 0:00:18.6]} 56...
Nd8 {[%clk 0:00:07.7]} 57. Rc7 {[%clk 0:00:16.4]} 57... Ne6 {[%clk 0:00:07.8]}
58. Rc6 {[%clk 0:00:16]} 58... Kf7 {[%clk 0:00:07.9]} 59. Rc8 {[%clk 0:00:14.9]}
59... Bd6 {[%clk 0:00:06.5]} 60. Rc6 {[%clk 0:00:14.6]} 60... Bc5 {[%clk
0:00:04.8]} 61. f5 {[%clk 0:00:14.5]} 61... Nd4 {[%clk 0:00:04.6]} 62. Rc8
{[%clk 0:00:14.5]} 62... Kf6 {[%clk 0:00:05.2]} 63. Rc7 {[%clk 0:00:03.3]} 63...
Nc2 {[%clk 0:00:04.5]} 64. Rb7 {[%clk 0:00:03.4]} 64... Ne3+ {[%clk 0:00:04.5]}
65. Kf4 {[%clk 0:00:03.6]} 65... Nxf5 {[%clk 0:00:05.4]} 66. Rc7 {[%clk
0:00:03.8]} 66... Nd6 {[%clk 0:00:05.8]} 67. Rc6 {[%clk 0:00:04.2]} 67... Kf7
{[%clk 0:00:05.8]} 68. Rc7+ {[%clk 0:00:04.8]} 68... Kf6 {[%clk 0:00:06.3]} 69.
Rc6 {[%clk 0:00:05]} 69... Ke6 {[%clk 0:00:06.9]} 70. Rc7 {[%clk 0:00:05.4]}
70... Ne8 {[%clk 0:00:07.6]} 71. Rb7 {[%clk 0:00:05.6]} 71... Bd6+ {[%clk
0:00:07.1]} 72. Kg5 {[%clk 0:00:06]} 72... Bc7 {[%clk 0:00:07.5]} 73. Kg6 {[%clk
0:00:05.7]} 73... Kd5 {[%clk 0:00:07.2]} 74. Ra7 {[%clk 0:00:06.2]} 74... Kc6
{[%clk 0:00:07.4]} 75. Ra1 {[%clk 0:00:06.9]} 75... Be5 {[%clk 0:00:07.1]} 76.
Re1 {[%clk 0:00:07.1]} 76... Kd6 {[%clk 0:00:06.4]} 77. Kf7 {[%clk 0:00:06.3]}
77... Nc7 {[%clk 0:00:06.4]} 78. Rd1+ {[%clk 0:00:05.8]} 78... Nd5 {[%clk
0:00:06.3]} 79. Rb1 {[%clk 0:00:05.7]} 79... Bd4 {[%clk 0:00:06.4]} 80. Rd1
{[%clk 0:00:05.2]} 80... Kc5 {[%clk 0:00:03.5]} 81. Ke6 {[%clk 0:00:04.6]} 81...
Nf4+ {[%clk 0:00:03.5]} 82. Kf5 {[%clk 0:00:03.7]} 82... Nxh5 {[%clk 0:00:04.4]}
83. Ke4 {[%clk 0:00:04.3]} 83... Nf6+ {[%clk 0:00:04.4]} 84. Kd3 {[%clk
0:00:04.2]} 84... Be5 {[%clk 0:00:04.2]} 85. Re1 {[%clk 0:00:04]} 85... Kd5
{[%clk 0:00:04.5]} 86. Rg1 {[%clk 0:00:03.3]} 86... Nd7 {[%clk 0:00:03.7]} 87.
Rb1 {[%clk 0:00:02.5]} 87... Nc5+ {[%clk 0:00:04.6]} 88. Ke2 {[%clk 0:00:02.2]}
88... Nd7 {[%clk 0:00:05.5]} 89. Kd3 {[%clk 0:00:02.7]} 89... Bd6 {[%clk
0:00:05.7]} 90. Ke3 {[%clk 0:00:03.2]} 90... g5 {[%clk 0:00:05.8]} 91. Kd3
{[%clk 0:00:04.1]} 91... Bf4 {[%clk 0:00:06.2]} 92. Rb5+ {[%clk 0:00:04]} 92...
Kc6 {[%clk 0:00:06.3]} 93. Rf5 {[%clk 0:00:04.6]} 93... b5 {[%clk 0:00:06.3]}
94. Ke4 {[%clk 0:00:04.6]} 94... b4 {[%clk 0:00:06.2]} 95. Rf7 {[%clk
0:00:05.2]} 95... b3 {[%clk 0:00:05.7]} 96. Kd3 {[%clk 0:00:05.9]} 96... b2
{[%clk 0:00:05.7]} 97. Kc2 {[%clk 0:00:06.5]} 97... Bc1 {[%clk 0:00:06.2]} 98.
Rg7 {[%clk 0:00:06]} 98... Kd6 {[%clk 0:00:06.5]} 99. Rg6+ {[%clk 0:00:06.4]}
99... Ke5 {[%clk 0:00:06.6]} 100. Rb6 {[%clk 0:00:06.8]} 100... Nf6 {[%clk
0:00:06]} 101. Kd1 {[%clk 0:00:07.4]} 101... Nd5 {[%clk 0:00:06.2]} 102. Rb8
{[%clk 0:00:07.8]} 102... Nc3+ {[%clk 0:00:05.8]} 103. Kc2 {[%clk 0:00:07.7]}
103... b1=Q+ {[%clk 0:00:06.7]} 104. Rxb1 {[%clk 0:00:07.2]} 104... Nxb1 {[%clk
0:00:07.6]} 105. Kxb1 {[%clk 0:00:07.6]} 105... Bf4 {[%clk 0:00:07.8]} 0-1